[Event "WYCC 2018 O16"]
[Site "Halkidiki"]
[Date "2018.10.28"]
[Round "9"]
[White "Schitco, Ivan"]
[Black "Stevanic, David"]
[Result "0-1"]
[ECO "E70"]
[WhiteElo "2376"]
[BlackElo "2281"]
[Annotator "NA"]
[PlyCount "114"]
[EventDate "2018.10.20"]
[EventType "swiss"]
[EventCountry "GRE"]
[SourceTitle "playchess.com"]
[Source "ChessBase"]
[SourceQuality "1"]
[TimeControl "40/5400+30:1800+30"]

1. d4 {[%emt 0:00:00]} Nf6 {[%emt 0:00:00]} 2. c4 {[%emt 0:00:00]} g6 {[%emt 0:00:06]} 3. Nc3 {[%emt 0:00:08]} Bg7 {[%emt 0:00:06]} 4. e4 {[%emt 0:00:11]} d6 {[%emt 0:00:14]} 5. Nge2 {[%emt 0:00:08]} O-O {[%emt 0:01:01]} 6. Ng3 {[%emt 0:00:12]} a6 {[%emt 0:01:02]} 7. Be2 {[%emt 0:00:16] E70: Königsindisch (Weiß spielt früh e2-e4)} c5 {[%emt 0:01:01]} 8. dxc5 {[%emt 0:00:05]} dxc5 {[%emt 0:00:48]} 9. Be3 {[%emt 0:00:12]} b6 $146 {[%emt 0:03:27]} ({Vorgänger:} 9... Nfd7 10. f4 Bxc3+ 11. bxc3 Nc6 12. e5 Qa5 13. Ne4 Rd8 14. Qc1 Nd4 {½-½ (44) Kunin,V (2513)-Khruschiov,A (2421) Moscow 2012}) 10. e5 {[%emt 0:01:37]} Qxd1+ {[%emt 0:11:08]} 11. Rxd1 {[%emt 0:00:28]} Ng4 {[%emt 0:00:24]} 12. Bxg4 {[%emt 0:06:56]} Bxg4 {[%emt 0:00:07]} 13. f3 {[%emt 0:00:55]} Be6 {[%emt 0:00:45]} 14. Na4 {[%emt 0:07:15]} Nd7 {[%emt 0:18:53]} 15. Rxd7 {[%emt 0:03:40]} Bxd7 {[%emt 0:00:05]} 16. Nxb6 {[%emt 0:00:04]} Ra7 {[%emt 0:00:24]} 17. f4 {[%emt 0:03:54]} Be6 {[%emt 0:19:17]} 18. Bxc5 {[%emt 0:06:51]} Rc7 {[%emt 0:00:11]} 19. b4 $17 {[%emt 0:00:42]} Rd8 {[%emt 0:11:02]} 20. Ke2 {[%emt 0:14:37]} f6 {[%emt 0:03:56]} 21. Rf1 {[%emt 0:13:03]} fxe5 {[%emt 0:04:27]} 22. f5 {[%emt 0:02:09]} gxf5 {[%emt 0:05:18]} 23. Nxf5 {[%emt 0:00:11]} Bxf5 {[%emt 0:01:12]} 24. Rxf5 {[%emt 0:00:09]} e6 {[%emt 0:00:04]} 25. Rg5 {[%emt 0:03:06]} a5 {[%emt 0:00:44]} 26. a3 {[%emt 0:01:24]} Kf7 {[%emt 0:03:20]} 27. Be3 {[%emt 0:05:32]} axb4 {[%emt 0:01:44]} 28. axb4 {[%emt 0:01:00]} Ra7 {[%emt 0:00:13]} 29. Kf3 {[%emt 0:03:51]} Ra3 {[%emt 0:02:03]} 30. Rg3 {[%emt 0:00:17]} Bh6 {[%emt 0:03:12]} 31. Ke4 {[%emt 0:01:31]} Rxe3+ {[%emt 0:02:16]} 32. Rxe3 {[%emt 0:00:02]} Rd4+ {[%emt 0:00:06]} 33. Kf3 {[%emt 0:00:10]} Bxe3 {[%emt 0:00:05]} 34. Kxe3 {[%emt 0:00:02]} Ke7 {[%emt 0:00:18]} 35. b5 {[%emt 0:01:38]} Kd6 {[%emt 0:00:58]} 36. Nc8+ {[%emt 0:01:45]} Kd7 {[%emt 0:01:44]} 37. Na7 {[%emt 0:00:19]} Rxc4 {[%emt 0:00:22]} 38. Nc6 {[%emt 0:00:18]} Rc5 {[%emt 0:00:40]} 39. Ke4 {[%emt 0:00:09]} Rxb5 {[%emt 0:01:42]} 40. Nxe5+ {[%emt 0:00:00]} Ke7 {[%emt 0:00:00]} 41. Nf3 {[%emt 0:00:55]} Kf6 {[%emt 0:00:50]} 42. h3 {[%emt 0:00:37]} Rb4+ {[%emt 0:00:18]} 43. Ke3 {[%emt 0:00:05]} h5 {[%emt 0:00:47]} 44. Nd4 {[%emt 0:00:40]} e5 {[%emt 0:00:51]} 45. Nf3 {[%emt 0:00:14]} Kf5 {[%emt 0:00:19]} 46. Nd2 {[%emt 0:00:14]} Ra4 {[%emt 0:00:56]} 47. Nf3 {[%emt 0:00:18]} Ra3+ {[%emt 0:00:26]} 48. Kf2 {[%emt 0:00:23]} e4 {[%emt 0:01:59]} 49. Nd4+ {[%emt 0:00:09]} Ke5 {[%emt 0:00:31]} 50. Ne2 {[%emt 0:00:07]} Rb3 {[%emt 0:00:48]} 51. h4 {[%emt 0:00:11]} Ra3 {[%emt 0:02:42]} 52. Ng3 {[%emt 0:01:03]} Rxg3 {[%emt 0:03:50]} 53. Kxg3 {[%emt 0:00:20]} Kd4 {[%emt 0:00:03]} 54. Kf2 {[%emt 0:01:13]} Kd3 {[%emt 0:00:05]} 55. Ke1 {[%emt 0:00:31]} Ke3 {[%emt 0:00:06]} 56. g4 {[%emt 0:00:53]} hxg4 {[%emt 0:00:04]} 57. h5 {[%emt 0:00:03]} g3 {[%emt 0:00:08]} 0-1

[Event "WYCC 2018 O16"]
[Site "Halkidiki"]
[Date "2018.10.28"]
[Round "9"]
[White "Wachinger, Nikolas"]
[Black "Mukhutdinov, Tigran"]
[Result "1-0"]
[ECO "C88"]
[WhiteElo "2360"]
[BlackElo "2256"]
[Annotator "NA"]
[PlyCount "73"]
[EventDate "2018.10.20"]
[EventType "swiss"]
[EventCountry "GRE"]
[SourceTitle "playchess.com"]
[Source "ChessBase"]
[SourceQuality "1"]
[TimeControl "40/5400+30:1800+30"]

1. e4 {[%emt 0:00:00]} e5 {[%emt 0:00:00]} 2. Nf3 {[%emt 0:00:00]} Nc6 {[%emt 0:00:00]} 3. Bb5 {[%emt 0:00:00]} a6 {[%emt 0:00:00]} 4. Ba4 {[%emt 0:00:00]} Nf6 5. O-O {[%emt 0:00:03]} Be7 {[%emt 0:00:01]} 6. Re1 {[%emt 0:00:08]} b5 {[%emt 0:00:06]} 7. Bb3 {[%emt 0:00:04]} O-O {[%emt 0:00:22]} 8. a4 {[%emt 0:00:15]} Bb7 {[%emt 0:00:27]} 9. d3 {[%emt 0:00:14]} d6 {[%emt 0:00:22]} 10. Bd2 {[%emt 0:00:40]} Qd7 {[%emt 0:02:35]} 11. Nc3 {[%emt 0:01:38]} Nd8 {[%emt 0:12:22]} 12. axb5 {[%emt 0:02:35]} axb5 {[%emt 0:00:09]} 13. Rxa8 {[%emt 0:00:07]} Bxa8 {[%emt 0:00:03]} 14. d4 {[%emt 0:00:08]} b4 {[%emt 0:11:05]} 15. Nd5 {[%emt 0:00:40]} Nxd5 {[%emt 0:09:55]} 16. exd5 {[%emt 0:00:17]} exd4 {[%emt 0:01:18]} 17. Nxd4 {[%emt 0:03:58]} Bf6 {[%emt 0:08:23]} 18. Bxb4 {[%emt 0:02:35]} Nb7 {[%emt 0:03:35]} 19. c4 {[%emt 0:10:53]} Nc5 {[%emt 0:04:47]} 20. Bc2 {[%emt 0:00:24]} g6 {[%emt 0:01:29]} 21. Bc3 {[%emt 0:02:21]} Qd8 {[%emt 0:01:32]} 22. b4 {[%emt 0:18:26]} Nd7 {[%emt 0:01:38]} 23. Ba4 {[%emt 0:01:53]} Bg7 {[%emt 0:07:33]} 24. Qe2 {[%emt 0:06:47]} Nb6 {[%emt 0:05:28]} 25. Bb5 {[%emt 0:01:23]} Qh4 {[%emt 0:02:26]} 26. Qe7 {[%emt 0:05:23]} Qxe7 {[%emt 0:08:28]} 27. Rxe7 {[%emt 0:00:04]} Bxd5 {[%emt 0:01:04]} 28. Rxc7 {[%emt 0:03:06]} Be5 {[%emt 0:01:16]} 29. Ne2 {[%emt 0:05:35]} Bxc3 {[%emt 0:04:22]} 30. Nxc3 {[%emt 0:00:24]} Be6 {[%emt 0:00:09]} 31. Ne4 {[%emt 0:14:59]} Ra8 {[%emt 0:02:49]} 32. h3 {[%emt 0:02:29]} d5 {[%emt 0:01:09]} 33. c5 {[%emt 0:10:50]} Nc8 {[%emt 0:04:53]} 34. Ng5 {[%emt 0:01:38]} Bf5 {[%emt 0:02:15]} 35. g4 {[%emt 0:01:15]} Na7 {[%emt 0:00:28]} 36. Be2 {[%emt 0:01:12]} Bc2 {[%emt 0:02:00]} 37. b5 {[%emt 0:00:26]} 1-0

[Event "WYCC 2018 O16"]
[Site "Halkidiki"]
[Date "2018.10.28"]
[Round "9"]
[White "Sankalp Gupta"]
[Black "Quirhuayo Chumbe, German Gonzalo"]
[Result "1-0"]
[ECO "A48"]
[WhiteElo "2352"]
[BlackElo "2220"]
[Annotator "NA"]
[PlyCount "95"]
[EventDate "2018.10.20"]
[EventType "swiss"]
[EventCountry "GRE"]
[SourceTitle "playchess.com"]
[Source "ChessBase"]
[SourceQuality "1"]
[TimeControl "40/5400+30:1800+30"]

1. d4 {[%emt 0:00:00]} Nf6 {[%emt 0:00:00]} 2. Nf3 {[%emt 0:00:00]} g6 {[%emt 0:00:00]} 3. Bg5 {[%emt 0:00:00]} Bg7 {[%emt 0:00:00]} 4. Nbd2 {[%emt 0:00:00]} O-O {[%emt 0:00:00]} 5. c3 {[%emt 0:00:00]} h6 {[%emt 0:00:08]} 6. Bh4 {[%emt 0:00:00]} d6 {[%emt 0:00:10]} 7. e4 {[%emt 0:00:17]} c5 {[%emt 0:00:13]} 8. dxc5 {[%emt 0:01:28]} dxc5 {[%emt 0:00:06]} 9. Bc4 {[%emt 0:01:27]} Nc6 {[%emt 0:01:14]} 10. Qe2 {[%emt 0:00:04]} Nh5 {[%emt 0:02:24]} 11. Qe3 {[%emt 0:07:46]} g5 {[%emt 0:20:44]} 12. Bg3 {[%emt 0:02:16]} b6 {[%emt 0:01:42]} 13. O-O-O {[%emt 0:01:36]} Bb7 {[%emt 0:02:40]} 14. Qe2 {[%emt 0:23:28]} e6 {[%emt 0:08:28]} 15. Nf1 {[%emt 0:04:09]} Qf6 $11 {[%emt 0:08:52]} 16. h4 {[%emt 0:16:08]} g4 {[%emt 0:21:11]} 17. N3h2 {[%emt 0:03:00]} Nxg3 {[%emt 0:00:06]} 18. Nxg3 {[%emt 0:00:06]} Qf4+ {[%emt 0:00:06]} 19. Kb1 {[%emt 0:01:34]} Ne5 {[%emt 0:00:16]} 20. Bb3 {[%emt 0:00:22]} Rfd8 {[%emt 0:07:52]} 21. Bc2 {[%emt 0:00:27]} c4 {[%emt 0:00:17]} 22. Nh5 {[%emt 0:03:47]} Rxd1+ {[%emt 0:00:16]} 23. Qxd1 {[%emt 0:00:01]} Qxf2 {[%emt 0:00:10]} 24. Nxg4 {[%emt 0:00:13]} Qc5 {[%emt 0:00:26]} 25. Rf1 {[%emt 0:01:34]} Ng6 {[%emt 0:08:34]} 26. e5 {[%emt 0:02:02]} Bxg2 {[%emt 0:05:54]} 27. Rf2 {[%emt 0:09:49]} Bc6 {[%emt 0:04:43]} 28. Qd2 {[%emt 0:02:50]} Nxe5 {[%emt 0:02:06]} 29. Nxh6+ {[%emt 0:00:40]} Kf8 {[%emt 0:00:29]} 30. Nxg7 {[%emt 0:08:23]} Kxg7 {[%emt 0:00:59]} 31. Qg5+ {[%emt 0:00:12]} Kf8 {[%emt 0:00:05]} 32. Qf6 {[%emt 0:02:31]} Qe3 {[%emt 0:01:00]} 33. a3 {[%emt 0:00:57]} Ke8 {[%emt 0:00:26]} 34. Rf1 {[%emt 0:04:21]} Be4 {[%emt 0:03:30]} 35. Bxe4 {[%emt 0:04:37]} Qxe4+ {[%emt 0:00:06]} 36. Ka1 {[%emt 0:00:24]} Kd7 {[%emt 0:01:23]} 37. Nxf7 {[%emt 0:00:35]} Nd3 {[%emt 0:00:46]} 38. Ng5 {[%emt 0:00:08]} Qe5 {[%emt 0:00:52]} 39. Qf7+ {[%emt 0:00:08]} Kd6 {[%emt 0:00:26]} 40. Qb7 {[%emt 0:00:00]} Qd5 {[%emt 0:00:00]} 41. Nf7+ {[%emt 0:09:47]} Kc5 {[%emt 0:04:29]} 42. Qc7+ {[%emt 0:03:51]} Qc6 {[%emt 0:14:19]} 43. Qe7+ {[%emt 0:00:38]} Kb5 {[%emt 0:00:06]} 44. h5 {[%emt 0:00:57]} Rg8 {[%emt 0:08:32]} 45. Qxa7 {[%emt 0:00:07]} Rg2 {[%emt 0:00:15]} 46. a4+ {[%emt 0:00:12]} Kc5 {[%emt 0:00:08]} 47. Qe7+ {[%emt 0:00:01]} Kd5 {[%emt 0:04:08]} 48. Qd8+ {[%emt 0:00:02] Ke5} 1-0

[Event "WYCC 2018 O16"]
[Site "Halkidiki"]
[Date "2018.10.28"]
[Round "9"]
[White "Koustav Chatterjee"]
[Black "Sargsyan, Tigran R."]
[Result "1/2-1/2"]
[ECO "D10"]
[WhiteElo "2344"]
[BlackElo "2218"]
[Annotator "NA"]
[PlyCount "112"]
[EventDate "2018.10.20"]
[EventType "swiss"]
[EventCountry "GRE"]
[SourceTitle "playchess.com"]
[Source "ChessBase"]
[SourceQuality "1"]
[TimeControl "40/5400+30:1800+30"]

1. d4 {[%emt 0:00:00]} d5 {[%emt 0:00:00]} 2. c4 {[%emt 0:00:00]} c6 {[%emt 0:00:00]} 3. Nc3 {[%emt 0:00:00]} Nf6 {[%emt 0:00:05]} 4. e3 {[%emt 0:00:00]} a6 {[%emt 0:02:27]} 5. Nf3 {[%emt 0:00:20]} Bf5 {[%emt 0:00:44]} 6. Qb3 {[%emt 0:06:02]} b5 {[%emt 0:02:19]} 7. cxd5 {[%emt 0:04:32]} cxd5 {[%emt 0:00:13]} 8. Nh4 {[%emt 0:02:11]} Bc8 {[%emt 0:14:46]} 9. a4 {[%emt 0:08:16]} b4 {[%emt 0:02:16]} 10. Qxb4 {[%emt 0:14:34]} e5 {[%emt 0:05:20]} 11. Qb3 {[%emt 0:00:46]} exd4 {[%emt 0:01:37]} 12. exd4 {[%emt 0:01:03]} Nc6 {[%emt 0:00:20]} 13. Qd1 {[%emt 0:02:18]} Ne4 {[%emt 0:03:16]} 14. Nf3 {[%emt 0:03:40]} Bb4 {[%emt 0:06:48]} 15. Bd2 {[%emt 0:04:36]} Nxd2 $11 {[%emt 0:04:37]} 16. Qxd2 {[%emt 0:01:10]} O-O {[%emt 0:00:44]} 17. Be2 {[%emt 0:00:25]} Qf6 {[%emt 0:13:38]} 18. O-O {[%emt 0:07:52]} Be6 {[%emt 0:05:44]} 19. Rad1 {[%emt 0:04:23]} h6 {[%emt 0:01:19]} 20. Rfe1 {[%emt 0:03:31]} Bd6 {[%emt 0:09:59]} 21. Bd3 {[%emt 0:06:33]} Rfe8 {[%emt 0:03:47]} 22. Qe2 {[%emt 0:04:43]} Re7 {[%emt 0:02:43]} 23. Bb1 {[%emt 0:05:08]} Nb4 {[%emt 0:04:33]} 24. Ne5 {[%emt 0:02:48]} Rae8 {[%emt 0:02:12]} 25. g3 {[%emt 0:07:53]} Bf5 {[%emt 0:01:33]} 26. f4 {[%emt 0:01:08]} Bxb1 {[%emt 0:00:22]} 27. Rxb1 {[%emt 0:00:09]} Qf5 {[%emt 0:00:52]} 28. Qd2 {[%emt 0:00:54]} f6 {[%emt 0:03:05]} 29. Nf3 {[%emt 0:00:19]} g5 {[%emt 0:01:33]} 30. Rxe7 {[%emt 0:01:42]} Rxe7 {[%emt 0:00:01]} 31. Re1 {[%emt 0:02:09]} Rg7 {[%emt 0:00:40]} 32. Qe2 {[%emt 0:02:01]} gxf4 {[%emt 0:01:37]} 33. Nh4 {[%emt 0:00:22]} Qh3 {[%emt 0:04:00]} 34. Qe6+ {[%emt 0:00:07]} Qxe6 {[%emt 0:00:04]} 35. Rxe6 {[%emt 0:00:04]} Bc7 {[%emt 0:00:35]} 36. Nf5 {[%emt 0:01:58]} Rg5 {[%emt 0:00:42]} 37. g4 {[%emt 0:02:49]} Rxg4+ {[%emt 0:00:46]} 38. Kf2 {[%emt 0:00:13]} Rg5 {[%emt 0:02:07]} 39. Re8+ {[%emt 0:01:04]} Kf7 {[%emt 0:00:09]} 40. Re7+ {[%emt 0:00:00]} Kf8 {[%emt 0:00:00]} 41. Rxc7 {[%emt 0:00:15]} Rxf5 {[%emt 0:00:55]} 42. Kf3 {[%emt 0:03:02]} Nc2 {[%emt 0:05:18]} 43. Ne2 {[%emt 0:04:36]} Ne1+ {[%emt 0:01:39]} 44. Kg4 {[%emt 0:04:29]} Rg5+ {[%emt 0:00:50]} 45. Kxf4 {[%emt 0:00:08]} Nd3+ {[%emt 0:01:05]} 46. Kf3 {[%emt 0:00:19]} Nxb2 {[%emt 0:00:45]} 47. Nf4 {[%emt 0:01:25]} Rf5 {[%emt 0:03:26]} 48. Kg4 {[%emt 0:00:55]} Rg5+ {[%emt 0:00:12]} 49. Kf3 {[%emt 0:00:35]} Rf5 {[%emt 0:00:05]} 50. Rc3 {[%emt 0:07:16]} Nc4 {[%emt 0:04:15]} 51. h4 {[%emt 0:00:27]} h5 {[%emt 0:00:04]} 52. Rc2 {[%emt 0:00:53]} Kf7 {[%emt 0:01:16]} 53. Rg2 {[%emt 0:00:25]} Ne5+ {[%emt 0:00:35]} 54. Ke3 {[%emt 0:00:10]} Nc4+ {[%emt 0:00:08]} 55. Kf3 {[%emt 0:00:05]} Ne5+ {[%emt 0:00:17]} 56. Ke3 {[%emt 0:01:28]} Nc4+ {[%emt 0:00:05] Ke4} 1/2-1/2

[Event "WYCC 2018 O16"]
[Site "Halkidiki"]
[Date "2018.10.28"]
[Round "9"]
[White "Guerra Rivera, Salvador"]
[Black "Jakab, Bela"]
[Result "0-1"]
[ECO "C07"]
[WhiteElo "2340"]
[BlackElo "2285"]
[Annotator "NA"]
[PlyCount "72"]
[EventDate "2018.10.20"]
[EventType "swiss"]
[EventCountry "GRE"]
[SourceTitle "playchess.com"]
[Source "ChessBase"]
[SourceQuality "1"]
[TimeControl "40/5400+30:1800+30"]

1. e4 {[%emt 0:00:00]} e6 {[%emt 0:00:00]} 2. d4 {[%emt 0:00:04]} d5 {[%emt 0:00:00]} 3. Nd2 {[%emt 0:00:27]} c5 {[%emt 0:00:00]} 4. exd5 {[%emt 0:00:27]} Qxd5 {[%emt 0:00:00]} 5. Ngf3 {[%emt 0:00:25]} cxd4 {[%emt 0:00:07]} 6. Bc4 {[%emt 0:00:30]} Qd6 {[%emt 0:00:05]} 7. O-O {[%emt 0:00:49]} Nf6 {[%emt 0:00:07]} 8. Nb3 {[%emt 0:00:14]} Nc6 {[%emt 0:00:07]} 9. Nbxd4 {[%emt 0:00:24]} Nxd4 {[%emt 0:00:07]} 10. Nxd4 {[%emt 0:00:04]} a6 {[%emt 0:00:05]} 11. Re1 {[%emt 0:00:13]} Qc7 {[%emt 0:00:29]} 12. Bf1 {[%emt 0:00:32] C07: Französische Verteidigung (Tarrasch-Variante)} Bd6 {[%emt 0:07:04]} 13. Nf5 {[%emt 0:02:04]} Bxh2+ {[%emt 0:16:24]} 14. Kh1 {[%emt 0:00:06]} Kf8 {[%emt 0:01:06]} 15. Qd4 {[%emt 0:01:04]} exf5 {[%emt 0:04:09]} 16. Qxf6 {[%emt 0:00:33]} h6 {[%emt 0:00:16]} 17. Qd4 {[%emt 0:00:34] [#]} Be6 $146 {[%emt 0:10:14]} ({Vorgänger:} 17... Bd6 18. Bd2 Be6 19. Bc3 Rh7 {0-1 (48) Karjakin,S (2781)-Caruana,F (2808) Paris 2017}) 18. g3 {[%emt 0:09:34]} Bxg3 {[%emt 0:00:29]} 19. fxg3 {[%emt 0:00:04]} Qxg3 {[%emt 0:00:07]} 20. Bf4 {[%emt 0:03:26]} Qh4+ {[%emt 0:00:39]} 21. Kg1 {[%emt 0:00:13]} Kg8 {[%emt 0:00:43]} 22. Bg2 {[%emt 0:03:15]} Rc8 {[%emt 0:11:11]} 23. Be5 {[%emt 0:05:31]} Qg5 $16 {[%emt 0:05:12]} 24. Bf4 {[%emt 0:13:39]} Qg4 {[%emt 0:01:51]} 25. Qf2 {[%emt 0:04:28]} Bd5 {[%emt 0:04:05]} 26. Be5 {[%emt 0:03:07]} Rc6 {[%emt 0:17:49]} 27. Kh2 {[%emt 0:16:41]} Bxg2 {[%emt 0:03:10]} 28. Re3 {[%emt 0:04:09]} Be4 {[%emt 0:03:13]} 29. Rg1 {[%emt 0:02:04]} Rxc2 {[%emt 0:00:23]} 30. Qxc2 {[%emt 0:00:47]} Bxc2 {[%emt 0:00:42]} 31. Rxg4 {[%emt 0:00:14]} fxg4 {[%emt 0:00:06]} 32. Bc3 {[%emt 0:03:45]} h5 {[%emt 0:02:42]} 33. Kg3 {[%emt 0:00:29]} Bf5 {[%emt 0:01:43]} 34. Kf4 {[%emt 0:01:22]} Be6 {[%emt 0:02:06]} 35. Re5 {[%emt 0:00:08]} h4 {[%emt 0:01:09]} 36. Rg5 {[%emt 0:00:05]} Rh7 {[%emt 0:00:07]} 0-1

[Event "WYCC 2018 O16"]
[Site "Halkidiki"]
[Date "2018.10.28"]
[Round "9"]
[White "Golikov, Daniil"]
[Black "Ibrahimli, Murad"]
[Result "1-0"]
[ECO "A28"]
[WhiteElo "2319"]
[BlackElo "2379"]
[Annotator "NA"]
[PlyCount "75"]
[EventDate "2018.10.20"]
[EventType "swiss"]
[EventCountry "GRE"]
[SourceTitle "playchess.com"]
[Source "ChessBase"]
[SourceQuality "1"]
[TimeControl "40/5400+30:1800+30"]

1. c4 {[%emt 0:00:00]} e5 {[%emt 0:00:21]} 2. Nc3 {[%emt 0:00:02]} Nf6 {[%emt 0:00:12]} 3. Nf3 {[%emt 0:00:55]} Nc6 {[%emt 0:00:05]} 4. e3 {[%emt 0:00:05]} Bb4 {[%emt 0:00:29]} 5. Qc2 {[%emt 0:01:13]} O-O {[%emt 0:01:36]} 6. Nd5 {[%emt 0:00:34]} Re8 {[%emt 0:03:06]} 7. Qf5 {[%emt 0:02:57]} d6 {[%emt 0:01:30]} 8. Nxf6+ {[%emt 0:00:09]} gxf6 {[%emt 0:00:11]} 9. Qc2 {[%emt 0:01:17]} d5 {[%emt 0:08:31]} 10. a3 {[%emt 0:04:04]} Bf8 {[%emt 0:00:37]} 11. cxd5 {[%emt 0:06:09]} Qxd5 {[%emt 0:00:05]} 12. Bc4 {[%emt 0:01:27]} Qd7 {[%emt 0:03:41]} 13. d3 {[%emt 0:09:40]} Qg4 {[%emt 0:05:40]} 14. b4 {[%emt 0:03:57]} Bg7 {[%emt 0:07:00]} 15. O-O $14 {[%emt 0:02:47]} a6 {[%emt 0:21:22]} 16. Bb2 {[%emt 0:04:33]} Be6 {[%emt 0:02:36]} 17. Rac1 {[%emt 0:11:28]} Rad8 {[%emt 0:02:15]} 18. Nd2 {[%emt 0:07:30]} f5 {[%emt 0:17:10]} 19. Nb3 {[%emt 0:04:25]} Bxc4 {[%emt 0:12:20]} 20. Qxc4 {[%emt 0:02:12]} Qxc4 {[%emt 0:06:24]} 21. Rxc4 {[%emt 0:00:29]} Rxd3 {[%emt 0:03:11]} 22. Nc5 {[%emt 0:00:05]} b5 {[%emt 0:01:18]} 23. Rc2 {[%emt 0:01:59]} Rd6 {[%emt 0:00:09]} 24. Nxa6 {[%emt 0:00:52]} Re7 {[%emt 0:00:42]} 25. Rc5 {[%emt 0:05:20]} h5 {[%emt 0:01:20]} 26. h3 {[%emt 0:00:33]} Na7 {[%emt 0:00:34]} 27. Nxc7 {[%emt 0:00:11]} Rd2 {[%emt 0:00:27]} 28. Bc1 {[%emt 0:01:42]} Ra2 {[%emt 0:00:05]} 29. Rd1 {[%emt 0:00:06]} Ra1 {[%emt 0:00:36]} 30. Kh2 {[%emt 0:10:40]} e4 {[%emt 0:00:07]} 31. Rdd5 {[%emt 0:00:06]} h4 {[%emt 0:01:13]} 32. g3 {[%emt 0:01:36]} hxg3+ {[%emt 0:00:32]} 33. Kxg3 {[%emt 0:00:01]} Kh7 {[%emt 0:00:12]} 34. Rxf5 {[%emt 0:01:06]} Rd7 {[%emt 0:00:40]} 35. Rh5+ {[%emt 0:00:56]} Kg8 {[%emt 0:00:08]} 36. Nxb5 {[%emt 0:00:14]} Nxb5 {[%emt 0:00:55]} 37. Rc8+ {[%emt 0:00:05]} Bf8 {[%emt 0:00:08]} 38. Bb2 {[%emt 0:00:04]} 1-0

[Event "WYCC 2018 O16"]
[Site "Halkidiki"]
[Date "2018.10.28"]
[Round "9"]
[White "Sahidi, Samir"]
[Black "Petkov, Matey"]
[Result "1-0"]
[ECO "B07"]
[WhiteElo "2315"]
[BlackElo "2164"]
[Annotator "NA"]
[PlyCount "75"]
[EventDate "2018.10.20"]
[EventType "swiss"]
[EventCountry "GRE"]
[SourceTitle "playchess.com"]
[Source "ChessBase"]
[SourceQuality "1"]
[TimeControl "40/5400+30:1800+30"]

1. d4 {[%emt 0:00:00]} d6 {[%emt 0:00:16]} 2. e4 {[%emt 0:00:50]} Nf6 {[%emt 0:00:11]} 3. Nc3 {[%emt 0:00:07]} g6 {[%emt 0:00:32]} 4. Be2 {[%emt 0:04:05]} Bg7 {[%emt 0:00:11]} 5. f4 {[%emt 0:00:42]} c5 {[%emt 0:00:41]} 6. d5 {[%emt 0:02:02]} O-O {[%emt 0:00:13]} 7. Nf3 {[%emt 0:00:25]} b5 {[%emt 0:02:43]} 8. e5 {[%emt 0:01:23] A43: Schmid Benoni} Nfd7 {[%emt 0:03:30]} (8... dxe5 9. fxe5 Ng4 10. d6 Bb7 11. Nxb5 Nxe5 12. Nc7 exd6 13. Nxa8 Nxf3+ 14. Bxf3 Qh4+ 15. g3 Re8+ 16. Kf2 Qd4+ 17. Kg2 Qxd1 18. Rxd1 {1-0 (33) Becerra,J (2334)-Escobar Medina,A (2281) Tunja 2018}) 9. exd6 {[%emt 0:05:44]} Bxc3+ {[%emt 0:01:51]} 10. bxc3 {[%emt 0:00:08]} exd6 {[%emt 0:00:01]} 11. O-O {[%emt 0:01:30]} Nb6 {[%emt 0:01:54]} 12. Bxb5 $146 {[%emt 0:03:03]} ({Predecessor:} 12. Ng5 Qe7 13. Bf3 Re8 14. Bd2 Nc4 15. Re1 Qd8 16. Rxe8+ Qxe8 {0-1 (45) Ranfagni,S (2014)-Agrifoglio,F (2017) Milan 2009}) 12... Bb7 {[%emt 0:00:14]} 13. f5 {[%emt 0:10:31]} a6 {[%emt 0:03:28]} 14. Bd3 {[%emt 0:02:46]} Bxd5 {[%emt 0:02:02]} 15. Kh1 {[%emt 0:03:06]} N8d7 {[%emt 0:07:14]} 16. Qe1 {[%emt 0:04:38]} (16. Bh6 $16) 16... Bxf3 {[%emt 0:12:21]} 17. Rxf3 {[%emt 0:01:13]} c4 {[%emt 0:00:16]} 18. Be2 {[%emt 0:01:41]} Re8 {[%emt 0:02:58]} 19. Qd1 $14 {[%emt 0:04:20]} Ne5 {[%emt 0:12:52]} 20. Rf1 {[%emt 0:00:41]} f6 {[%emt 0:16:12]} 21. fxg6 {[%emt 0:02:58]} hxg6 {[%emt 0:00:06]} 22. Be3 {[%emt 0:03:05]} Kg7 {[%emt 0:00:48]} 23. Qd2 {[%emt 0:01:00]} Re6 {[%emt 0:05:58]} 24. Rab1 {[%emt 0:01:27]} Rb8 {[%emt 0:02:52]} 25. h3 {[%emt 0:04:47]} Nbd7 {[%emt 0:04:22]} 26. Rb4 {[%emt 0:02:13]} Qa5 {[%emt 0:10:08]} 27. Bxc4 {[%emt 0:03:39]} Nxc4 {[%emt 0:00:13]} 28. Rxc4 {[%emt 0:00:06]} Ne5 {[%emt 0:00:15]} 29. Rd4 {[%emt 0:01:21]} Nf7 {[%emt 0:02:48]} 30. a4 {[%emt 0:02:12]} Rc8 {[%emt 0:00:15]} 31. Rb4 {[%emt 0:00:34]} Qc7 {[%emt 0:02:18]} 32. Bd4 {[%emt 0:00:35]} Ne5 {[%emt 0:00:42]} 33. Rfb1 {[%emt 0:00:25]} Re7 {[%emt 0:00:31]} 34. Qf2 {[%emt 0:03:00]} Qc6 {[%emt 0:03:32]} 35. Rb6 {[%emt 0:00:38]} Qxa4 {[%emt 0:00:31]} 36. Rxd6 {[%emt 0:00:11]} Rf7 {[%emt 0:00:49]} 37. Rxf6 {[%emt 0:01:57]} Rxf6 {[%emt 0:00:24]} 38. Rb7+ {[%emt 0:00:39]} 1-0

[Event "WYCC 2018 O16"]
[Site "Halkidiki"]
[Date "2018.10.28"]
[Round "9"]
[White "Loiacono, Leonardo"]
[Black "Stoleriu, George"]
[Result "1/2-1/2"]
[ECO "E32"]
[WhiteElo "2277"]
[BlackElo "2362"]
[Annotator "NA"]
[PlyCount "71"]
[EventDate "2018.10.20"]
[EventType "swiss"]
[EventCountry "GRE"]
[SourceTitle "playchess.com"]
[Source "ChessBase"]
[SourceQuality "1"]
[TimeControl "40/5400+30:1800+30"]

1. d4 {[%emt 0:00:00]} e6 {[%emt 0:00:00]} 2. c4 {[%emt 0:00:00]} Nf6 {[%emt 0:00:00]} 3. Nc3 {[%emt 0:00:00]} Bb4 {[%emt 0:00:00]} 4. Qc2 {[%emt 0:00:00]} O-O {[%emt 0:00:00]} 5. a3 {[%emt 0:01:05]} Bxc3+ {[%emt 0:00:00]} 6. Qxc3 {[%emt 0:00:07]} b5 {[%emt 0:00:00]} 7. cxb5 {[%emt 0:04:41]} c6 {[%emt 0:00:29]} 8. Bg5 {[%emt 0:10:18]} cxb5 {[%emt 0:00:07]} 9. e3 {[%emt 0:00:13]} Bb7 {[%emt 0:00:15]} 10. Nf3 {[%emt 0:00:15]} h6 {[%emt 0:00:06]} 11. Bxf6 {[%emt 0:06:45]} Qxf6 {[%emt 0:01:51]} 12. Be2 {[%emt 0:05:43]} Nc6 {[%emt 0:03:54]} 13. O-O {[%emt 0:02:51]} Rac8 {[%emt 0:04:38]} 14. Qd2 {[%emt 0:04:33]} Ne7 {[%emt 0:31:51]} 15. Ne5 {[%emt 0:08:27]} d6 {[%emt 0:03:12]} 16. Bf3 $11 {[%emt 0:00:50]} dxe5 {[%emt 0:27:45]} 17. Bxb7 {[%emt 0:05:15]} Rc7 {[%emt 0:02:17]} 18. dxe5 {[%emt 0:00:34]} Qxe5 {[%emt 0:00:17]} 19. Bf3 {[%emt 0:00:17]} Rfc8 {[%emt 0:01:14]} 20. Rac1 {[%emt 0:00:34]} Nf5 {[%emt 0:02:02]} 21. Rxc7 {[%emt 0:02:04]} Qxc7 {[%emt 0:01:08]} 22. Rd1 {[%emt 0:00:45]} Qe5 {[%emt 0:12:19]} 23. g3 {[%emt 0:01:54]} Qc7 {[%emt 0:03:56]} 24. Qd7 {[%emt 0:03:21]} Qc5 {[%emt 0:02:43]} 25. Be4 {[%emt 0:03:30]} g6 {[%emt 0:00:41]} 26. Kg2 {[%emt 0:02:15]} a5 {[%emt 0:00:16]} 27. Rd2 {[%emt 0:00:25]} Rb8 {[%emt 0:01:07]} 28. h4 {[%emt 0:03:14]} Qe5 {[%emt 0:01:03]} 29. Bxf5 {[%emt 0:01:39]} gxf5 {[%emt 0:00:45]} 30. Rd4 {[%emt 0:01:23]} Kg7 {[%emt 0:00:27]} 31. Qa7 {[%emt 0:00:44]} b4 {[%emt 0:00:20]} 32. a4 {[%emt 0:02:37]} Rc8 {[%emt 0:00:30]} 33. Rd7 {[%emt 0:02:32]} Rf8 {[%emt 0:00:22]} 34. b3 {[%emt 0:03:45]} Qe4+ {[%emt 0:00:32]} 35. Kh2 {[%emt 0:00:06]} Qc2 {[%emt 0:00:49]} 36. Qd4+ {[%emt 0:00:40]} 1/2-1/2